Cogmind - Beta 14 @@@ ROGUE MODE // 2024.12.03 @ 18:15:10 Player: sve9 Result: Destroyed by Y-45 Defender with Heavy Assault Rifle Performance ------------- Evolutions (1) 500 Regions Visited (3) 600 Robots Destroyed (38) 190 Value Destroyed (893) 893 Prototype IDs (1) 20 Alien Tech Used (0) 0 Bonus (0) 0 TOTAL SCORE: 2203 Bonus ------- None Cogmind --------- Core Integrity 0/400 Matter 128/300 Energy 241/250 System Corruption 3% Temperature Cool (9) Movement Treading (320) Ox2 Location -9/Storage Parts ------- > --- POWER (1) -------- Ion Engine > --- PROPULSION (2) --- Light Treads Light Treads > --- UTILITY (4) ------ Improved Heat Sink Huge Storage Unit Transport Network Coupler > --- WEAPON (2) ------- Spread Laser Light Cannon > --- INVENTORY (25) --- Light Ion Engine Light Ion Engine Light Ion Engine Improved Ion Engine Light Treads Light Treads Aluminum Leg Aluminum Leg Wheel Wheel Wheel Small Storage Unit High-capacity Matter Pod (200) Hacking Suite Authchip [Processor] Authchip [Armor] Authchip [Weapon] Small Laser Spread Laser Light Cannon Precision Rocket Launcher Plasma Cutter Peak State ------------ > --- POWER ------------ Improved Ion Engine > --- PROPULSION ------- Light Treads Wheel > --- UTILITY ---------- Improved Heat Sink Huge Storage Unit Transport Network Coupler > --- WEAPON ----------- Heavy Assault Rifle Precision Rocket Launcher > --- INVENTORY -------- Ion Engine Light Ion Engine Light Ion Engine Light Ion Engine Improved Ion Engine Light Treads Light Treads Light Treads Aluminum Leg Aluminum Leg Wheel Wheel Small Storage Unit High-capacity Matter Pod Hacking Suite Authchip [Processor] Authchip [Armor] Authchip [Weapon] Small Laser Spread Laser Spread Laser Light Cannon Light Cannon Light Cannon Plasma Cutter [Rating: 21] Favorites ----------- Power Ion Engine Engine Ion Engine Propulsion Light Treads Treads Light Treads Wheel Wheel Utility Improved Heat Sink Device Improved Heat Sink Storage Huge Storage Unit Processor Transport Network Coupler Protection Light Armor Plating Weapon Light Assault Rifle Energy Gun Small Laser Ballistic Gun Light Assault Rifle Ballistic Cannon Light Cannon Launcher Precision Rocket Launcher Build | -11 -10 -9 -9 ------- Run | Yrd Mat Mat Sto Slots Evolved 2 | . . 2 . Power . | . . . . Propulsion . | . . . . Utility 2 | . . 2 . Weapon . | . . . . Parts Attached 42 | 6 6 15 15 Power 3 | 1 . 1 1 Engine 3 | 1 . 1 1 Core . | . . . . Reactor . | . . . . Propulsion 19 | 2 2 5 10 Treads 11 | 2 . 3 6 Leg . | . . . . Wheel 8 | . 2 2 4 Hover . | . . . . Flight . | . . . . Utility 9 | 1 3 5 . Device 2 | . 2 . . Storage 2 | 1 1 . . Processor 2 | . . 2 . Hackware . | . . . . Protection 3 | . . 3 . Artifact . | . . . . Weapon 11 | 2 1 4 4 Energy Gun 3 | 1 . 1 1 Energy Cannon . | . . . . Ballistic Gun 5 | 1 1 3 . Ballistic Cannon 2 | . . . 2 Launcher 1 | . . . 1 Special Weapon . | . . . . Impact Weapon . | . . . . Slashing Weapon . | . . . . Piercing Weapon . | . . . . Special Melee Weapon . | . . . . Unidentified Prototypes 1 | . . . 1 Parts Lost 19 | . 4 12 3 Power 2 | . . 1 1 Propulsion 5 | . 2 3 . Utility 5 | . 1 4 . Weapon 7 | . 1 4 2 Highest Loss Streak 6 | . 2 6 2 To Critical Strikes . | . . . . Average Slot Usage (%) 92 | . 97 90 87 Engine 11 | . 14 10 10 Treads 13 | . 18 10 12 Wheel 9 | . 8 10 9 Device 11 | . 12 11 11 Storage 12 | . 14 11 11 Processor 6 | . . 9 11 Protection 2 | . . 5 . Energy Gun 6 | . 12 1 7 Ballistic Gun 16 | . 15 20 9 Peak Build Rating 21 | 6 10 16 21 Average Rating 11 | 5 8 13 15 On Entrance 8 | . 6 10 16 Naked Turns . | . . . . Heaviest Build 93 | 12 88 93 92 Greatest Support 40 | 40 40 40 40 Greatest Overweight (x) 9 | 3 8 9 9 Average Overweight (x) 5 | . 3 7 7 Largest Inventory Capacity 25 | 8 25 25 25 Average Capacity 20 | 7 16 25 25 Most Carried 25 | 4 14 25 25 Average Carried 15 | 3 7 20 24 Final Capacity 25 | 8 25 25 25 Final Carried 25 | 4 14 25 22 Class Distribution -------------------- 55% | Mutant 44% | Scavenger-Mutant Dominant Class ---------------- Mutant | -10/Materials Scavenger-Mutant | -9/Materials Scavenger-Mutant | -9/Storage Resources | -11 -10 -9 -9 ----------- Run | Yrd Mat Mat Sto Matter Collected 1021 | 192 319 403 107 Remotely . | . . . . Salvage Created 1327 | 66 449 667 145 Parts 79 | 7 28 35 9 Haulers Intercepted 4 | . 2 2 . Recyclers Shooed 4 | 1 . 3 . Parts Field Recycled . | . . . . Retrieved Matter . | . . . . Parts Self-Destructed . | . . . . Prevented . | . . . . Kills | -11 -10 -9 -9 ------- Run | Yrd Mat Mat Sto Combat Hostiles Destroyed 26 | . 10 11 5 Guns 23 | . 10 11 2 Cannons 3 | . . . 3 Classes Destroyed 10 | 2 4 4 . Worker 3 | 1 . 2 . Tunneler 2 | 2 . . . Hauler 4 | . 2 2 . Recycler 1 | . . 1 . Mechanic 1 | . . 1 . Operator 1 | . 1 . . Swarmer 7 | . 3 4 . Grunt 12 | . 7 2 3 Brawler 1 | . . 1 . Sentry 6 | . . 4 2 Best Kill Streak 5 | 1 4 5 2 Combat Bots Only 3 | . 3 3 2 Max Kills in Single Turn 2 | 1 1 2 1 Gunslinging . | . . . . Exploded . | . . . . Melee . | . . . . Uniques/NPCs Destroyed . | . . . . Combat | -11 -10 -9 -9 -------- Run | Yrd Mat Mat Sto Hostile Shots Fired 226 | . 71 99 56 Missed 43 | . 18 13 12 Damage Taken 2346 | . 644 1021 681 Core 537 | . 136 206 195 Absorbed by Shields . | . . . . Core Remaining (%) 72 | 100 45 . . Volleys Fired 165 | 19 56 68 22 Largest 2 | 2 2 2 2 Hottest 100 | 60 60 63 100 Shots Fired 319 | 37 112 126 44 Gun 298 | 37 112 126 23 Cannon 21 | . . . 21 Launcher . | . . . . Special . | . . . . Kinetic 242 | 19 64 120 39 Thermal 77 | 18 48 6 5 Explosive . | . . . . Electromagnetic . | . . . . Robot Hit Streak 17 | 8 9 17 10 Robot Miss Streak 6 | 6 4 3 4 Penetration Max . | . . . . Secondary Targets 3 | . 1 2 . Max Gunslinging Chain 1 | . 1 1 . Shots Hit Robots 218 | 21 72 94 31 Core Hits 78 | 4 28 33 13 Critical Kills 1 | . 1 . . Critical Parts Destroyed 1 | . 1 . . Critical Strikes 3 | . 2 . 1 Destroy 2 | . 2 . . Blast 1 | . . . 1 Melee Attacks . | . . . . Impact . | . . . . Slashing . | . . . . Piercing . | . . . . Sneak Attacks . | . . . . Combat Hostiles . | . . . . Follow-up Attacks . | . . . . Damage Inflicted 2412 | 207 694 999 512 Guns 2166 | 207 694 999 266 Cannons 246 | . . . 246 Explosions . | . . . . Melee . | . . . . Ramming . | . . . . Kinetic 1801 | 75 345 944 437 Thermal 611 | 132 349 55 75 Explosive . | . . . . Electromagnetic . | . . . . Impact . | . . . . Slashing . | . . . . Piercing . | . . . . Highest Corruption 3 | . . 3 3 Average Corruption 2 | . . 2 3 Corruption Purged . | . . . . Corruption Blocked . | . . . . Effects 17 | . . 8 9 Message Errors 6 | . . 3 3 Matter Fused 4 | . . 3 1 Heat Flow Errors 2 | . . 1 1 Energy Discharges 1 | . . . 1 Data Loss (minor) 1 | . . . 1 Data Loss (major) 1 | . . . 1 Misfires 1 | . . . 1 Weapon Failures 1 | . . 1 . Overload Shots . | . . . . Overflow Damage . | . . . . Projectiles . | . . . . Explosions . | . . . . Melee . | . . . . Knockbacks 2 | . . . 2 Impact . | . . . . Kinetic 2 | . . . 2 Secondary . | . . . . Self-Inflicted Damage . | . . . . Shots . | . . . . Rammed . | . . . . Targets Rammed . | . . . . Kicked . | . . . . Crushed . | . . . . Highest Temperature 227 | 40 177 227 65 Average Temperature 42 | 20 51 105 19 Received Heat Transfer 867 | . 354 201 312 Siege Activations . | . . . . Robots Corrupted . | . . . . Combat Hostiles . | . . . . Parts Fried . | . . . . Impact Corruptions . | . . . . Robots Melted . | . . . . Combat Hostiles . | . . . . Parts Melted 3 | . 3 . . Heat Transferred 1295 | 300 775 125 95 Parts Sabotaged . | . . . . Parts Stolen . | . . . . Parts Stripped . | . . . . Power Chain Reactions . | . . . . Alert | -11 -10 -9 -9 ------- Run | Yrd Mat Mat Sto Peak Influence 169 | 15 169 128 161 Initial 40 | . 9 20 40 Average 50 | 4 62 51 50 Maximum Alert Level . | . . . . Low Security (%) 100 | 100 100 100 100 Level 1 . | . . . . Level 2 . | . . . . Level 3 . | . . . . Level 4 . | . . . . Level 5 . | . . . . High Security . | . . . . Max Security . | . . . . Squads Dispatched 4 | . 1 . 3 Investigation . | . . . . Extermination . | . . . . Reinforcement 2 | . 1 . 1 Assault . | . . . . Garrison 2 | . . . 2 Intercept . | . . . . Searches Triggered . | . . . . Construction Impeded . | . . . . Haulers Reinforced . | . . . . Active Scanning Responses . | . . . . Cargo Convoy Interrupts . | . . . . Stealth | -11 -10 -9 -9 --------- Run | Yrd Mat Mat Sto Distress Signals 4 | . 2 1 1 Communications Jammed . | . . . . Distress Signals . | . . . . Times Spotted 41 | . 17 16 8 Peak Tracking Total 4 | . 4 4 4 Tactical Retreats 2 | . 1 . 1 Traps | -11 -10 -9 -9 ------- Run | Yrd Mat Mat Sto Traps Triggered 1 | . . . 1 Indirectly . | . . . . Trap Hack Attempts . | . . . . Triggered . | . . . . Disarmed . | . . . . Reprogrammed . | . . . . Reused . | . . . . Traps Extracted . | . . . . Installed . | . . . . Triggered . | . . . . Machines | -11 -10 -9 -9 ---------- Run | Yrd Mat Mat Sto Machines Disabled 1 | . . . 1 Max in Single Turn 1 | . . . 1 Machines Repaired . | . . . . Machines Dismantled . | . . . . Machines Sabotaged . | . . . . Overloaded Fab Kills . | . . . . Hacking | -11 -10 -9 -9 --------- Run | Yrd Mat Mat Sto Machines Accessed 9 | . 3 3 3 Terminals 8 | . 3 3 2 Fabricators . | . . . . Repair Stations . | . . . . Recycling Units . | . . . . Scanalyzers . | . . . . Garrison Access 1 | . . . 1 Total Hacks 25 | . 7 9 9 Successful 11 | . 4 4 3 Failed 14 | . 3 5 6 Catastrophic 5 | . 2 1 2 Database Lockouts . | . . . . Manual 11 | . 6 5 . Terminals 22 | . 7 9 6 Fabricators . | . . . . Repair Stations . | . . . . Recycling Units . | . . . . Scanalyzers . | . . . . Garrison Access 3 | . . . 3 Terminal Hacks 6 | . 1 2 3 Open Door 1 | . . . 1 Branch Access Points 1 | . . 1 . Unreport Threat 3 | . 1 1 1 Locate Traps 1 | . . . 1 Fabricator Hacks . | . . . . Repair Station Hacks . | . . . . Recycling Unit Hacks . | . . . . Scanalyzer . | . . . . Garrison Access Hacks . | . . . . Unauthorized Hacks 5 | . 3 2 . Terminals 5 | . 3 2 . Botnet 5 | . 3 2 . Fabricators . | . . . . Repair Stations . | . . . . Recycling Units . | . . . . Scanalyzers . | . . . . Garrison Access . | . . . . Data Cores Recovered . | . . . . Used . | . . . . Hacking Detections 9 | . 3 3 3 Full Trace Events . | . . . . Feedback Events . | . . . . Feedback Blocked . | . . . . Robot Schematics Acquired . | . . . . Robots Built . | . . . . Authchips . | . . . . Time . | . . . . Total Robot Build Rating . | . . . . Part Schematics Acquired . | . . . . Parts Built . | . . . . Authchips . | . . . . Time . | . . . . Total Part Build Rating . | . . . . Parts Repaired . | . . . . Time . | . . . . Parts Recycled . | . . . . Recycled Matter . | . . . . Retrieved Matter . | . . . . Retrieved Components . | . . . . Parts Scanalyzed . | . . . . Part Schematics Acquired . | . . . . Parts Damaged . | . . . . Bothacking | -11 -10 -9 -9 ------------ Run | Yrd Mat Mat Sto Used RIF Installer . | . . . . Robots Hacked . | . . . . Non-combat . | . . . . Combat . | . . . . Robot Hacks Applied . | . . . . Relay Couplers Released . | . . . . Fabnet Peak Effective % . | . . . . Robots Rewired . | . . . . Allies Hacked . | . . . . Hacks Repelled . | . . . . Allies | -11 -10 -9 -9 -------- Run | Yrd Mat Mat Sto Total Allies . | . . . . Largest Group . | . . . . Highest-Rated Group . | . . . . Highest-Rated Ally . | . . . . Total Orders . | . . . . Ally Attacks . | . . . . Total Damage . | . . . . Kills . | . . . . Allies Corrupted . | . . . . Allies Melted . | . . . . Intel | -11 -10 -9 -9 ------- Run | Yrd Mat Mat Sto Robot Analysis Total . | . . . . Derelict Logs Recovered . | . . . . Drone Launches . | . . . . Drone Recoveries . | . . . . Exploration | -11 -10 -9 -9 ------------- Run | Yrd Mat Mat Sto Turns Passed 1899 | 167 653 729 350 Spaces Moved 683 | 60 259 246 118 Core 19 | 19 . . . Treads 145 | 41 98 4 2 Legs . | . . . . Wheels 519 | . 161 242 116 Hover . | . . . . Flight . | . . . . Fastest Speed 50 | 50 95 135 140 Average Speed 183 | 163 169 194 202 Slowest Speed 320 | 200 200 320 320 Overloaded Moves . | . . . . Propulsion Burnouts . | . . . . Robots Hopped . | . . . . Cave-ins Triggered . | . . . . Exploration Rate (%) 28 | 4 51 23 34 Regions Visited 3 Branch Regions 1 Pre-discovered Areas . | . . . . Known Exits Taken 1 | . . 1 . Unknown Exits Taken 2 | 1 1 . . Scrap Searched . | . . . . Spaces Dug . | . . . . Terrain Destroyed . | . . . . Melee . | . . . . Projectile . | . . . . AOE . | . . . . Terrain Rammed . | . . . . Walls Destroyed . | . . . . Machines Disabled . | . . . . Actions | -11 -10 -9 -9 --------- Run | Yrd Mat Mat Sto Total 1031 | 93 372 382 184 Wait 105 | 5 40 34 26 Move 680 | 59 258 245 118 Hop . | . . . . Pick Up 34 | 4 12 18 . Fast Attach 15 | 6 2 6 1 Attach 15 | . 3 9 3 Detach 3 | . . 2 1 Swap 12 | . 1 . 11 Drop 2 | . . . 2 Fire 165 | 19 56 68 22 Melee . | . . . . Ram . | . . . . Kick . | . . . . Crush . | . . . . Escape Stasis . | . . . . Rewire . | . . . . Trap . | . . . . Miscellaneous . | . . . . Route ------- -11/Scrapyard -10/Materials (discovered 2 exits: *Mat x2) -9/Materials (discovered 4 exits: [*Mat] / *Min / *Sto x2) -9/Storage History --------- Turn | Location | Event 16 | -11/Scrapyard | Discovered new exit (range 16) 168 | -11/Scrapyard | Entered Materials 301 | -10/Materials | Build established: Mutant 581 | -10/Materials | Discovered new exit (range 11) 754 | -10/Materials | Core integrity fell below 50% 810 | -10/Materials | Discovered new exit (range 7) 821 | -10/Materials | Entered another Materials area 821 | -9/Materials | Evolved 2 slots: Utility x2 897 | -9/Materials | Discovered new exit (range 6) 964 | -9/Materials | Discovered new exit (range 11) 1133 | -9/Materials | Lost 3 parts (2u1w) 1315 | -9/Materials | Discovered new exit (range 6) 1336 | -9/Materials | Identified exit to Mines 1336 | -9/Materials | Identified exit to Storage 1456 | -9/Materials | Core integrity fell below 50% 1476 | -9/Materials | Lost 6 parts (1p2n1u2w) 1483 | -9/Materials | Build established: Scavenger-Mutant 1550 | -9/Materials | Entered Storage 1782 | -9/Storage | Garrison activated, responded to threat 1788 | -9/Storage | Core integrity fell below 20% 1900 | -9/Storage | Destroyed by Y-45 Defender with Heavy Assault Rifle Last Messages --------------- 01819_ Y-45 Defender destroyed. 01827_ Acquired 102 matter. 01829_ Acquired 5 matter. 01832_ Connecting with Terminal... >>Traps(Locate) Found 6 traps in 1 array: 6x Explosive Trap Map updated. >>Alert(Purge) Purged threat record, alert level lowered. 01853_ Lgt. Cannon destroyed. 01853_ O-16 Technician sends out distress signal. 01853_ O-16 Technician: "IFF HANDSHAKE FAILED. SECURING TERMINAL." 01859_ 1B40U|QH8%MT ZZURP VBFLYAL87AG,KQLC 01860_ ALERT: Hostiles spotted, dispatching reinforcements to Terminal S004. 01861_ Hvy. Assault Rifle destroyed. 01873_ Y-45 Defender destroyed. 01898_ #|IFX0 S9A8PYPMJVL6DTE |/VDY Map ----- +----------------------------------------------------+ | | | | | | | | | | | | | | | | | | | | | | | | | | | | | | | | | | | ######???????????????????????????????????????????? | | #??????????????????????????????????????????? | | #??????????????????????????????????????????? | | ??###??????????????????????????????????????? | | ??#!#??????????????????????????????????????? | | ???#[##????###########??????????????????????? | | ???#=!#????# m #?#####????????????????? | | +##+#####+####### """ # ######???????????? | | =% = T + """"?"@# ????????? | | ########=^[ # "????"=Y%% ????????? | | # ?????#=% # "????" #!% ????????? | | +??????#* % # "????" # ######???????????? | | #??????# # "???? #?#####????????????????? | | #??????# # ???? #??????????????????????? | | #??????#^^^ ##+##??####??????????????????????? | | #??????# ???????????????????????????????? | | #??????# ??????????????????????????????? | | #??????# """ #?????????????????????????????? | | #??????#^ """ #?????????????????????????????? | | #??????# ^""" #?????????????????????????????? | | #??????# "?" +?????????????????????????????? | | #??????# "?" #?????????????????????????????? | | #??????# ?? #?????????????????????????????? | | +??????? ??? ??????????????????????????????? | | #????????????###????????????????????????????????? | | +##??????????????????????????????????????????????? | | #??????????????????????????????????????????????? | | #??????????????????????????????????????????????? | | #??????????????????????????????????????????????? | | #??????????????????????????????????????????????? | | #??????????????????????????????????????????????? | | #??????????????????????????????????????????????? | | ###??????????????????????????????????????????????? | +----------------------------------------------------+ Best States ------------- Heat Dissipation 42 Energy Generation 12 Energy Capacity 265 Matter Stores 300 Matter Capacity 300 Sight Range 16 Terrain Scan Density 10 Armor Coverage 150 Evasion (%) 41 Targeting Accuracy 5 Recoil Reduction 2 Authchip Count 3 Item Schematics ----------------- None Robot Schematics ------------------ None Fabricated ------------ Nothing Alien Tech Used ----------------- None Achievements -------------- None Challenges ------------ None Game ------ Seed GlidesysTrapLauncher Manual? 0 Play Time 00:21:25 Cumulative 51.8 hours Start 2024.12.03 @ 17:53:45 End 2024.12.03 @ 18:15:10 Sessions 1 Manual Loads 0 Difficulty Rogue Special Mode None Game No. 26 Rogue 26 Adventurer 0 Explorer 0 Win Type - Total 6 Types 6/0/0/0/0/0/0/0/0 Lore% 27 Gallery% 43 Achievement% 41 Wizard Run 0 Options --------- Layout 1 ASCII 1 Keyboard 0 Movement Vi Keybinds 0 Fullscreen 1 Font 18/SmallcapsGlow Map View 54x44 Zoom Use 0% Tactical HUD 1 Map Filters NONE Filters NONE Steam 0 RUN: 16c767e0-530e-4db8-96ce-37fbbe54a7f6